[Event "4NCL Div 1 2024-25"]
[Site "England"]
[Date "2025.02.16"]
[Round "6.9"]
[White "Makkar, Rajat"]
[Black "Bazakutsa, Svyatoslav"]
[Result "1/2-1/2"]
[Annotator "ChessBase"]
[ECO "E68"]
[WhiteElo "2432"]
[BlackElo "2486"]
[PlyCount "212"]
[EventDate "2024.11.23"]
[EventType "team-tourn"]
[EventCountry "ENG"]
[SourceTitle "playchess.com"]
[Source "ChessBase"]
[SourceQuality "1"]
[TimeControl "40/6000+30:3000+30"]

1. d4 {[%emt 0:13:15]} Nf6 {[%emt 0:10:22]} 2. c4 {[%emt 0:00:11]} g6 {[%emt 0:00:14]} 3. g3 {[%emt 0:00:13]} Bg7 {[%emt 0:00:06]} 4. Bg2 {[%emt 0:00:05]} O-O {[%emt 0:00:22]} 5. Nc3 {[%emt 0:00:04]} d6 {[%emt 0:00:07]} 6. Nf3 {[%emt 0:00:05]} Nbd7 {[%emt 0:00:39]} 7. O-O {[%emt 0:01:07]} e5 {[%emt 0:00:08]} 8. e4 {[%emt 0:00:24]} Re8 {[%emt 0:00:46]} 9. h3 {[%emt 0:00:30]} exd4 {[%emt 0:00:13]} 10. Nxd4 {[%emt 0:00:06]} Nc5 {[%emt 0:00:07]} 11. Re1 {[%emt 0:00:35]} Bd7 {[%emt 0:00:21]} 12. Rb1 {[%emt 0:02:47]} h6 {[%emt 0:00:54]} 13. b3 {[%emt 0:01:27]} a5 {[%emt 0:00:53]} 14. Ndb5 {[%emt 0:09:19]} Bxb5 {[%emt 0:03:58]} 15. cxb5 {[%emt 0:01:28]} h5 {[%emt 0:01:18]} 16. h4 {[%emt 0:22:06]} Ng4 {[%emt 0:20:39]} 17. Nd5 {[%emt 0:06:55]} c6 {[%emt 0:10:03]} 18. bxc6 {[%emt 0:00:15]} bxc6 {[%emt 0:00:07]} 19. Nf4 {[%emt 0:01:29]} Qb6 {[%emt 0:11:31]} 20. Nh3 {[%emt 0:09:04]} d5 {[%emt 0:20:11]} 21. exd5 {[%emt 0:06:19]} Rxe1+ {[%emt 0:04:59]} 22. Qxe1 {[%emt 0:00:01]} Nd3 {[%emt 0:00:14]} 23. Qe2 {[%emt 0:02:45]} Ndxf2 {[%emt 0:00:53]} 24. Nxf2 {[%emt 0:00:05]} Bd4 {[%emt 0:00:09]} 25. Bf4 {[%emt 0:01:19]} Nxf2 {[%emt 0:04:12]} 26. dxc6 {[%emt 0:09:15]} Nd3+ {[%emt 0:04:58]} 27. Kh2 {[%emt 0:00:49]} Nxf4 {[%emt 0:00:06]} 28. gxf4 {[%emt 0:00:02]} Bf2 {[%emt 0:05:42]} 29. Rd1 {[%emt 0:08:47]} Be3 {[%emt 0:03:31]} 30. Qc4 {[%emt 0:01:49]} Ra7 {[%emt 0:04:34]} 31. Qe4 {[%emt 0:01:23]} Kh7 {[%emt 0:00:50]} 32. Rd5 {[%emt 0:02:22]} f5 {[%emt 0:01:58]} 33. Qc4 {[%emt 0:02:01]} Qb4 {[%emt 0:01:14]} 34. Qxb4 {[%emt 0:02:42]} axb4 {[%emt 0:00:01]} 35. Kg3 {[%emt 0:00:07]} Kh6 {[%emt 0:00:12]} 36. Rb5 {[%emt 0:04:35]} Rxa2 {[%emt 0:00:53]} 37. Bd5 {[%emt 0:00:14]} Rc2 {[%emt 0:00:57]} 38. Bc4 {[%emt 0:01:00]} Rc3 {[%emt 0:00:08]} 39. Rb7 {[%emt 0:00:20]} Bd2+ {[%emt 0:00:33]} 40. Kg2 {[%emt 0:01:18]} Bxf4 {[%emt 0:00:02]} 41. c7 {[%emt 0:50:56]} Rg3+ {[%emt 0:50:32]} 42. Kf2 {[%emt 0:00:32]} Bxc7 {[%emt 0:00:07]} 43. Rxc7 {[%emt 0:00:03]} Rh3 {[%emt 0:00:11]} 44. Rb7 {[%emt 0:00:47]} Rxh4 {[%emt 0:00:08]} 45. Rxb4 {[%emt 0:01:21]} Rf4+ {[%emt 0:00:00]} 46. Ke3 {[%emt 0:00:00]} g5 {[%emt 0:00:00]} 47. Rb8 {[%emt 0:00:00]} Re4+ {[%emt 0:00:00]} 48. Kd3 {[%emt 0:00:00]} g4 {[%emt 0:00:00]} 49. b4 {[%emt 0:00:00]} g3 {[%emt 0:00:00]} 50. Bd5 {[%emt 0:00:00]} g2 {[%emt 0:00:00]} 51. Rh8+ {[%emt 0:00:00]} Kg7 {[%emt 0:00:00]} 52. Rg8+ {[%emt 0:00:00]} Kh7 {[%emt 0:00:00]} 53. Rxg2 {[%emt 0:00:00]} Rxb4 {[%emt 0:00:00]} 54. Rg5 {[%emt 0:00:00]} Rg4 {[%emt 0:00:00]} 55. Rxf5 {[%emt 0:00:00]} Kh6 {[%emt 0:00:00]} 56. Ke3 {[%emt 0:00:00]} Rg5 {[%emt 0:00:00]} 57. Rf6+ {[%emt 0:00:00]} Kg7 {[%emt 0:00:00]} 58. Rf7+ {[%emt 0:00:00]} Kg6 {[%emt 0:00:00]} 59. Rd7 {[%emt 0:00:00]} Kf6 {[%emt 0:00:00]} 60. Be4 {[%emt 0:00:00]} Ke5 {[%emt 0:00:00]} 61. Bf3 {[%emt 0:00:00]} Kf6 {[%emt 0:00:00]} 62. Kf4 {[%emt 0:00:00]} Rf5+ {[%emt 0:00:00]} 63. Kg3 {[%emt 0:00:00]} Ke5 {[%emt 0:00:00]} 64. Rh7 {[%emt 0:00:00]} Rg5+ {[%emt 0:00:00]} 65. Kf2 {[%emt 0:00:00]} Kf4 {[%emt 0:00:00]} 66. Bxh5 {[%emt 0:00:00]} Rf5 {[%emt 0:00:00]} 67. Bf3 {[%emt 0:00:00]} Rc5 {[%emt 0:00:21]} 68. Rh4+ {[%emt 0:00:00]} Ke5 {[%emt 0:00:19]} 69. Be4 {[%emt 0:00:00]} Rc3 {[%emt 0:01:18]} 70. Ke2 {[%emt 0:00:00]} Kd6 {[%emt 0:01:25]} 71. Bd3 {[%emt 0:00:00]} Kd5 {[%emt 0:00:31]} 72. Ke3 {[%emt 0:00:00]} Rc5 {[%emt 0:00:16]} 73. Be4+ {[%emt 0:00:00]} Ke5 {[%emt 0:00:28]} 74. Rh5+ {[%emt 0:00:00]} Kd6 {[%emt 0:00:07]} 75. Rh8 {[%emt 0:00:00]} Rc1 {[%emt 0:00:35]} 76. Kd4 {[%emt 0:00:00]} Rd1+ {[%emt 0:00:05]} 77. Bd3 {[%emt 0:00:00]} Rd2 {[%emt 0:00:10]} 78. Rh6+ {[%emt 0:00:00]} Kd7 {[%emt 0:00:21]} 79. Ke4 {[%emt 0:00:00]} Kc7 {[%emt 0:00:06]} 80. Bc4 {[%emt 0:00:00]} Rd6 {[%emt 0:00:07]} 81. Rh5 {[%emt 0:00:00]} Kc6 {[%emt 0:01:19]} 82. Bd5+ {[%emt 0:00:00]} Kc5 {[%emt 0:00:53]} 83. Rh8 {[%emt 0:00:00]} Rg6 {[%emt 0:00:13]} 84. Rc8+ {[%emt 0:00:00]} Kb4 {[%emt 0:00:09]} 85. Kd4 {[%emt 0:00:00]} Rg4+ {[%emt 0:00:09]} 86. Be4 {[%emt 0:00:00]} Rh4 {[%emt 0:00:13]} 87. Rb8+ {[%emt 0:00:00]} Ka4 {[%emt 0:00:07]} 88. Kd5 {[%emt 0:00:00]} Ka3 {[%emt 0:00:07]} 89. Bd3 {[%emt 0:00:00]} Rb4 {[%emt 0:00:11]} 90. Rc8 {[%emt 0:00:00]} Kb3 {[%emt 0:00:58]} 91. Bc4+ {[%emt 0:00:00]} Kc3 {[%emt 0:00:10]} 92. Rc7 {[%emt 0:01:33]} Rb8 {[%emt 0:01:26]} 93. Bb5+ {[%emt 0:00:56]} Kd2 {[%emt 0:00:13]} 94. Kc5 {[%emt 0:00:17]} Ke3 {[%emt 0:00:32]} 95. Re7+ {[%emt 0:00:05]} Kf4 {[%emt 0:00:21]} 96. Bc4 {[%emt 0:00:07]} Rb2 {[%emt 0:00:15]} 97. Kd4 {[%emt 0:00:06]} Rb4 {[%emt 0:00:11]} 98. Rf7+ {[%emt 0:00:06]} Kg4 {[%emt 0:00:09]} 99. Kd3 {[%emt 0:00:07]} Kg5 {[%emt 0:00:09]} 100. Rf8 {[%emt 0:00:10]} Ra4 {[%emt 0:00:07]} 101. Bd5 {[%emt 0:00:41]} Rf4 {[%emt 0:00:11]} 102. Rg8+ {[%emt 0:00:05]} Kf6 {[%emt 0:01:25]} 103. Be4 {[%emt 0:00:03]} Ke5 {[%emt 0:01:06]} 104. Re8+ {[%emt 0:00:21]} Kd6 {[%emt 0:00:28]} 105. Ra8 {[%emt 0:00:16]} Rf1 {[%emt 0:00:33]} 106. Kd4 {[%emt 0:00:24]} Rd1+ {[%emt 0:00:08]} 1/2-1/2

[Event "4NCL Div 1 2024-25"]
[Site "England"]
[Date "2025.02.16"]
[Round "6.10"]
[White "Willow, Jonah B"]
[Black "O`Gorman, Tom"]
[Result "1/2-1/2"]
[Annotator "ChessBase"]
[ECO "C67"]
[WhiteElo "2454"]
[BlackElo "2380"]
[PlyCount "87"]
[EventDate "2024.11.23"]
[EventType "team-tourn"]
[EventCountry "ENG"]
[SourceTitle "playchess.com"]
[Source "ChessBase"]
[SourceQuality "1"]
[TimeControl "40/6000+30:3000+30"]

1. e4 {[%emt 0:11:00]} e5 {[%emt 0:10:07]} 2. Nf3 {[%emt 0:00:46]} Nc6 {[%emt 0:00:08]} 3. Bb5 {[%emt 0:00:14]} Nf6 {[%emt 0:00:07]} 4. O-O {[%emt 0:00:59]} Nxe4 {[%emt 0:00:07]} 5. Re1 {[%emt 0:03:35]} Nd6 {[%emt 0:00:08]} 6. Nxe5 {[%emt 0:00:05]} Nxe5 {[%emt 0:00:08]} 7. Rxe5+ {[%emt 0:00:04]} Be7 {[%emt 0:00:10]} 8. Bf1 {[%emt 0:00:05]} O-O {[%emt 0:00:10]} 9. d4 {[%emt 0:00:06]} Bf6 {[%emt 0:00:08]} 10. Re1 {[%emt 0:00:15]} Nf5 {[%emt 0:00:06]} 11. c3 {[%emt 0:08:52]} d5 {[%emt 0:01:21]} 12. a4 {[%emt 0:01:05]} c6 {[%emt 0:06:20]} 13. Na3 {[%emt 0:02:40]} Bg5 {[%emt 0:03:25]} 14. Nc2 {[%emt 0:04:37]} Bxc1 {[%emt 0:07:41]} 15. Qxc1 {[%emt 0:00:27]} a5 {[%emt 0:18:25]} 16. Bd3 {[%emt 0:05:11]} g6 {[%emt 0:01:33]} 17. Qf4 {[%emt 0:05:23]} Qd6 {[%emt 0:04:03]} 18. Re5 {[%emt 0:08:01]} Ng7 {[%emt 0:01:28]} 19. Qd2 {[%emt 0:05:21]} Bf5 {[%emt 0:04:07]} 20. Bxf5 {[%emt 0:01:10]} Nxf5 {[%emt 0:00:09]} 21. Rae1 {[%emt 0:00:15]} Qd7 {[%emt 0:03:11]} 22. Qe2 {[%emt 0:05:41]} Rad8 {[%emt 0:10:22]} 23. h3 {[%emt 0:06:40]} Qc8 {[%emt 0:04:41]} 24. Ne3 {[%emt 0:04:19]} Nxe3 {[%emt 0:00:08]} 25. Qxe3 {[%emt 0:01:11]} Kg7 {[%emt 0:06:53]} 26. h4 {[%emt 0:14:33]} h5 {[%emt 0:00:20]} 27. f3 {[%emt 0:04:07]} Rd7 {[%emt 0:07:45]} 28. g3 {[%emt 0:04:22]} Qd8 {[%emt 0:00:36]} 29. Kg2 {[%emt 0:01:31]} Qf6 {[%emt 0:01:20]} 30. f4 {[%emt 0:02:09]} Kh7 {[%emt 0:07:09]} 31. f5 {[%emt 0:05:24]} Rg8 {[%emt 0:00:42]} 32. Qe2 {[%emt 0:01:11]} Kh6 {[%emt 0:01:18]} 33. fxg6 {[%emt 0:00:26]} fxg6 {[%emt 0:00:19]} 34. Rf1 {[%emt 0:01:49]} Qg7 {[%emt 0:00:56]} 35. g4 {[%emt 0:01:27]} hxg4 {[%emt 0:04:43]} 36. Qxg4 {[%emt 0:00:01]} Kh7 {[%emt 0:00:49]} 37. Qe6 {[%emt 0:01:19]} Rc7 {[%emt 0:01:09]} 38. Qd6 {[%emt 0:01:57]} Rd7 {[%emt 0:00:18]} 39. Qe6 {[%emt 0:00:05]} Rc7 {[%emt 0:00:04]} 40. Qg4 {[%emt 0:01:27]} Rf7 {[%emt 0:02:42]} 41. h5 {[%emt 0:33:53]} Rxf1 {[%emt 0:28:50]} 42. Kxf1 {[%emt 0:01:37]} Qf6+ {[%emt 0:05:40]} 43. Ke2 {[%emt 0:01:55]} g5 {[%emt 0:00:16]} 44. Kd1 {[%emt 0:06:42]} 1/2-1/2

[Event "4NCL Div 1 2024-25"]
[Site "England"]
[Date "2025.02.16"]
[Round "6.11"]
[White "Roberson, Peter T"]
[Black "Czopor, Maciej"]
[Result "1/2-1/2"]
[Annotator "ChessBase"]
[ECO "B30"]
[WhiteElo "2432"]
[BlackElo "2383"]
[PlyCount "56"]
[EventDate "2024.11.23"]
[EventType "team-tourn"]
[EventCountry "ENG"]
[SourceTitle "playchess.com"]
[Source "ChessBase"]
[SourceQuality "1"]
[TimeControl "40/6000+30:3000+30"]

1. e4 {[%emt 0:10:03]} c5 {[%emt 0:14:51]} 2. Nf3 {[%emt 0:00:05]} Nc6 {[%emt 0:00:11]} 3. Bb5 {[%emt 0:00:08]} e6 {[%emt 0:00:05]} 4. Bxc6 {[%emt 0:00:17]} bxc6 {[%emt 0:00:03]} 5. b3 {[%emt 0:00:20]} f6 {[%emt 0:00:04]} 6. O-O {[%emt 0:07:23]} Nh6 {[%emt 0:00:53]} 7. d4 {[%emt 0:00:13]} Nf7 {[%emt 0:00:03]} 8. c4 {[%emt 0:00:14]} cxd4 {[%emt 0:04:11]} 9. Nxd4 {[%emt 0:01:42]} e5 {[%emt 0:05:59]} 10. Ne2 {[%emt 0:07:46]} Bc5 {[%emt 0:03:10]} 11. Nbc3 {[%emt 0:00:50]} O-O {[%emt 0:01:09]} 12. Qd3 {[%emt 0:01:36]} Re8 {[%emt 0:05:24]} 13. Na4 {[%emt 0:11:45]} Bf8 {[%emt 0:00:18]} 14. c5 {[%emt 0:01:23]} Qa5 {[%emt 0:06:41]} 15. Qc3 {[%emt 0:06:57]} Qb5 {[%emt 0:04:41]} 16. Ng3 {[%emt 0:01:49]} d5 {[%emt 0:17:10]} 17. cxd6 {[%emt 0:00:16]} Bxd6 {[%emt 0:00:04]} 18. Be3 {[%emt 0:02:17]} Bb4 {[%emt 0:02:21]} 19. Qc2 {[%emt 0:01:06]} Be6 {[%emt 0:00:42]} 20. Rfd1 {[%emt 0:08:16]} g6 {[%emt 0:07:08]} 21. Bc5 {[%emt 0:04:17]} Ba5 {[%emt 0:01:16]} 22. Rac1 {[%emt 0:01:11]} Kg7 {[%emt 0:01:24]} 23. Be3 {[%emt 0:03:55]} Red8 {[%emt 0:01:17]} 24. Nf1 {[%emt 0:06:31]} Rxd1 {[%emt 0:01:27]} 25. Rxd1 {[%emt 0:01:25]} Bb6 {[%emt 0:00:42]} 26. Rc1 {[%emt 0:04:55]} Rc8 {[%emt 0:00:38]} 27. Bc5 {[%emt 0:01:44]} Nd8 {[%emt 0:04:17]} 28. h3 {[%emt 0:09:04]} Bf7 {[%emt 0:03:17]} 1/2-1/2

[Event "4NCL Div 1 2024-25"]
[Site "England"]
[Date "2025.02.16"]
[Round "6.12"]
[White "Golding, Alex"]
[Black "Onslow, Alfie"]
[Result "1-0"]
[Annotator "ChessBase"]
[ECO "D04"]
[WhiteElo "2404"]
[BlackElo "2170"]
[PlyCount "79"]
[EventDate "2024.11.23"]
[EventType "team-tourn"]
[EventCountry "ENG"]
[SourceTitle "playchess.com"]
[Source "ChessBase"]
[SourceQuality "1"]
[TimeControl "40/6000+30:3000+30"]

1. Nf3 {[%emt 0:11:11]} d5 {[%emt 0:11:06]} 2. d4 {[%emt 0:00:07]} Nf6 {[%emt 0:00:12]} 3. e3 {[%emt 0:00:54]} c5 {[%emt 0:02:09]} 4. Nbd2 {[%emt 0:00:59]} cxd4 {[%emt 0:01:47]} 5. exd4 {[%emt 0:00:08]} Nc6 {[%emt 0:00:09]} 6. Bb5 {[%emt 0:00:55]} Qb6 {[%emt 0:03:49]} 7. c4 {[%emt 0:01:14]} Bd7 {[%emt 0:04:52]} 8. O-O {[%emt 0:11:57]} e6 {[%emt 0:32:38]} 9. a4 {[%emt 0:07:21]} Bb4 {[%emt 0:02:57]} 10. c5 {[%emt 0:07:11]} Qc7 {[%emt 0:02:41]} 11. Nb3 {[%emt 0:03:58]} a5 {[%emt 0:00:55]} 12. Ne1 {[%emt 0:05:44]} Bxe1 {[%emt 0:06:21]} 13. Rxe1 {[%emt 0:04:01]} O-O {[%emt 0:00:24]} 14. g3 {[%emt 0:12:52]} b6 {[%emt 0:04:51]} 15. Bf4 {[%emt 0:01:06]} Qa7 {[%emt 0:01:20]} 16. cxb6 {[%emt 0:05:46]} Qxb6 {[%emt 0:00:17]} 17. Nc5 {[%emt 0:00:32]} Rfc8 {[%emt 0:02:41]} 18. Bg5 {[%emt 0:03:42]} Be8 {[%emt 0:01:48]} 19. Bxf6 {[%emt 0:00:17]} gxf6 {[%emt 0:00:02]} 20. Qg4+ {[%emt 0:05:18]} Kh8 {[%emt 0:01:08]} 21. Qh4 {[%emt 0:00:46]} Qd8 {[%emt 0:02:18]} 22. Qh6 {[%emt 0:00:58]} Kg8 {[%emt 0:02:25]} 23. Bxc6 {[%emt 0:00:38]} Rxc6 {[%emt 0:01:14]} 24. Nd3 {[%emt 0:00:39]} f5 {[%emt 0:03:06]} 25. Rec1 {[%emt 0:07:15]} Rac8 {[%emt 0:04:03]} 26. Rxc6 {[%emt 0:01:33]} Rxc6 {[%emt 0:00:07]} 27. b3 {[%emt 0:02:05]} f6 {[%emt 0:03:00]} 28. Rc1 {[%emt 0:01:23]} Rb6 {[%emt 0:06:23]} 29. Rc3 {[%emt 0:00:34]} Bf7 {[%emt 0:01:38]} 30. Qc1 {[%emt 0:01:03]} Kg7 {[%emt 0:00:22]} 31. Rc8 {[%emt 0:03:23]} Qd6 {[%emt 0:01:26]} 32. Qc3 {[%emt 0:00:22]} Qa3 {[%emt 0:02:09]} 33. Nc5 {[%emt 0:00:11]} Qb4 {[%emt 0:02:22]} 34. Qe3 {[%emt 0:00:25]} Qa3 {[%emt 0:03:05]} 35. Kg2 {[%emt 0:01:32]} Qa2 {[%emt 0:01:11]} 36. Rc7 {[%emt 0:00:35]} Kg6 {[%emt 0:00:16]} 37. Nd7 {[%emt 0:01:33]} Qxb3 {[%emt 0:01:15]} 38. Nf8+ {[%emt 0:01:24]} Kg7 {[%emt 0:00:08]} 39. Nxe6+ {[%emt 0:00:08]} Kg6 {[%emt 0:00:38]} 40. Nf4+ {[%emt 0:00:19]} 1-0

[Event "4NCL Div 1 2024-25"]
[Site "England"]
[Date "2025.02.16"]
[Round "6.13"]
[White "Price, Gwilym"]
[Black "Derakhshani, Borna"]
[Result "1/2-1/2"]
[Annotator "ChessBase"]
[ECO "B20"]
[WhiteElo "2223"]
[BlackElo "2355"]
[PlyCount "92"]
[EventDate "2024.11.23"]
[EventType "team-tourn"]
[EventCountry "ENG"]
[SourceTitle "playchess.com"]
[Source "ChessBase"]
[SourceQuality "1"]
[TimeControl "40/6000+30:3000+30"]

1. e4 {[%emt 0:10:02]} c5 {[%emt 0:13:42]} 2. b3 {[%emt 0:00:11]} d6 {[%emt 0:02:01]} 3. Bb2 {[%emt 0:00:14]} Nf6 {[%emt 0:01:02]} 4. Bb5+ {[%emt 0:00:06]} Nbd7 {[%emt 0:04:14]} 5. Qe2 {[%emt 0:00:09]} a6 {[%emt 0:01:42]} 6. Bxd7+ {[%emt 0:00:09]} Qxd7 {[%emt 0:03:51]} 7. d3 {[%emt 0:04:53]} e6 {[%emt 0:10:25]} 8. f4 {[%emt 0:01:53]} Be7 {[%emt 0:04:34]} 9. Nd2 {[%emt 0:02:16]} b5 {[%emt 0:01:45]} 10. g4 {[%emt 0:14:19]} h6 {[%emt 0:04:58]} 11. Ngf3 {[%emt 0:20:42]} Bb7 {[%emt 0:03:13]} 12. Rg1 {[%emt 0:00:41]} Qc7 {[%emt 0:04:22]} 13. c4 {[%emt 0:10:24]} Rg8 {[%emt 0:18:54]} 14. O-O-O {[%emt 0:09:13]} O-O-O {[%emt 0:02:23]} 15. Kb1 {[%emt 0:02:41]} Nd7 {[%emt 0:05:32]} 16. g5 {[%emt 0:06:48]} Nb8 {[%emt 0:09:54]} 17. g6 {[%emt 0:07:28]} f6 {[%emt 0:01:15]} 18. d4 {[%emt 0:04:09]} Bc6 {[%emt 0:02:57]} 19. d5 {[%emt 0:00:33]} exd5 {[%emt 0:00:01]} 20. exd5 {[%emt 0:00:08]} Bd7 {[%emt 0:00:02]} 21. Qd3 {[%emt 0:01:59]} f5 {[%emt 0:02:39]} 22. Nf1 {[%emt 0:01:54]} Rdf8 {[%emt 0:06:52]} 23. Ng3 {[%emt 0:01:53]} bxc4 {[%emt 0:00:01]} 24. bxc4 {[%emt 0:00:13]} Bd8 {[%emt 0:00:19]} 25. Rde1 {[%emt 0:03:46]} Kb7 {[%emt 0:00:08]} 26. Ka1 {[%emt 0:02:25]} Ka7 {[%emt 0:00:02]} 27. Nh5 {[%emt 0:01:26]} Bc8 {[%emt 0:00:00]} 28. Re3 {[%emt 0:00:54]} a5 {[%emt 0:00:17]} 29. Bc3 {[%emt 0:00:48]} Qd7 {[%emt 0:02:14]} 30. Qc2 {[%emt 0:01:13]} Ba6 {[%emt 0:00:16]} 31. Bb2 {[%emt 0:01:31]} Bc8 {[%emt 0:04:53]} 32. a3 {[%emt 0:00:46]} Na6 {[%emt 0:00:01]} 33. Bc3 {[%emt 0:00:32]} a4 {[%emt 0:01:24]} 34. h3 {[%emt 0:00:26]} Nc7 {[%emt 0:00:05]} 35. Rb1 {[%emt 0:00:18]} Na8 {[%emt 0:00:26]} 36. Rb5 {[%emt 0:00:36]} Nb6 {[%emt 0:00:18]} 37. Ba5 {[%emt 0:00:10]} Ba6 {[%emt 0:01:26]} 38. Bxb6+ {[%emt 0:00:02]} Bxb6 {[%emt 0:00:01]} 39. Qxa4 {[%emt 0:00:09]} Re8 {[%emt 0:00:44]} 40. Reb3 {[%emt 0:01:53]} Re4 {[%emt 0:00:47]} 41. Nd2 {[%emt 0:29:52]} Re1+ {[%emt 0:23:23]} 42. Ka2 {[%emt 0:01:50]} Rb8 {[%emt 0:05:39]} 43. Nb1 {[%emt 0:07:57]} Re2+ {[%emt 0:00:13]} 44. Ka1 {[%emt 0:00:17]} Re1 {[%emt 0:00:21]} 45. Ka2 {[%emt 0:00:22]} Re2+ {[%emt 0:00:06]} 46. Ka1 {[%emt 0:00:21]} Re1 {[%emt 0:00:15]} 1/2-1/2

[Event "4NCL Div 1 2024-25"]
[Site "England"]
[Date "2025.02.16"]
[Round "6.14"]
[White "Balaji, Aaravamudhan"]
[Black "Varnam, Liam D"]
[Result "1-0"]
[Annotator "ChessBase"]
[ECO "D26"]
[WhiteElo "2377"]
[BlackElo "2033"]
[PlyCount "51"]
[EventDate "2024.11.23"]
[EventType "team-tourn"]
[EventCountry "ENG"]
[SourceTitle "playchess.com"]
[Source "ChessBase"]
[SourceQuality "1"]
[TimeControl "40/6000+30:3000+30"]

1. d4 {[%emt 0:10:11]} d5 {[%emt 0:11:04]} 2. c4 {[%emt 0:00:10]} dxc4 {[%emt 0:00:05]} 3. Nf3 {[%emt 0:00:13]} Nf6 {[%emt 0:00:11]} 4. e3 {[%emt 0:00:06]} e6 {[%emt 0:00:10]} 5. Bxc4 {[%emt 0:00:05]} c5 {[%emt 0:00:04]} 6. O-O {[%emt 0:00:09]} a6 {[%emt 0:00:15]} 7. a4 {[%emt 0:00:11]} Nc6 {[%emt 0:01:02]} 8. Nc3 {[%emt 0:01:20]} cxd4 {[%emt 0:08:29]} 9. exd4 {[%emt 0:00:12]} Be7 {[%emt 0:00:12]} 10. Re1 {[%emt 0:00:44]} O-O {[%emt 0:01:00]} 11. Bf4 {[%emt 0:00:12]} Nb4 {[%emt 0:11:38]} 12. Ne5 {[%emt 0:00:40]} Nfd5 {[%emt 0:00:41]} 13. Bd2 {[%emt 0:09:32]} Nb6 {[%emt 0:11:41]} 14. Bb3 {[%emt 0:01:17]} Qxd4 {[%emt 0:07:27]} 15. a5 {[%emt 0:03:08]} Nd7 {[%emt 0:05:17]} 16. Re4 {[%emt 0:03:46]} Qd6 {[%emt 0:01:57]} 17. Nxf7 {[%emt 0:03:55]} Qc7 {[%emt 0:21:25]} 18. Bf4 {[%emt 0:03:41]} Qc5 {[%emt 0:00:44]} 19. Rxe6 {[%emt 0:02:09]} Nf6 {[%emt 0:13:06]} 20. Re5 {[%emt 0:15:48]} Qc7 {[%emt 0:01:11]} 21. Re4 {[%emt 0:03:09]} Bg4 {[%emt 0:03:51]} 22. Qxg4 {[%emt 0:03:12]} Qc5 {[%emt 0:02:09]} 23. Qe6 {[%emt 0:02:18]} Nxe4 {[%emt 0:00:32]} 24. Nh6+ {[%emt 0:00:23]} Kh8 {[%emt 0:00:07]} 25. Qg8+ {[%emt 0:00:07]} Rxg8 {[%emt 0:00:05]} 26. Nf7# {[%emt 0:00:05]} 1-0

[Event "4NCL Div 1 2024-25"]
[Site "England"]
[Date "2025.02.16"]
[Round "6.15"]
[White "Hryshchenko, Kamila"]
[Black "Fitzsimons, David"]
[Result "0-1"]
[Annotator "ChessBase"]
[ECO "B21"]
[WhiteElo "2138"]
[BlackElo "2317"]
[PlyCount "134"]
[EventDate "2024.11.23"]
[EventType "team-tourn"]
[EventCountry "ENG"]
[SourceTitle "playchess.com"]
[Source "ChessBase"]
[SourceQuality "1"]
[TimeControl "40/6000+30:3000+30"]

1. e4 {[%emt 0:10:25]} c5 {[%emt 0:10:08]} 2. d3 {[%emt 0:01:00]} Nc6 {[%emt 0:00:11]} 3. Be2 {[%emt 0:01:34]} e6 {[%emt 0:00:11]} 4. f4 {[%emt 0:00:21]} d5 {[%emt 0:00:23]} 5. Nf3 {[%emt 0:00:28]} Bd6 {[%emt 0:00:23]} 6. O-O {[%emt 0:01:54]} Nge7 {[%emt 0:00:09]} 7. c4 {[%emt 0:03:37]} O-O {[%emt 0:01:35]} 8. Nc3 {[%emt 0:07:32]} b6 {[%emt 0:07:51]} 9. cxd5 {[%emt 0:07:20]} exd5 {[%emt 0:00:08]} 10. f5 {[%emt 0:00:24]} f6 {[%emt 0:01:14]} 11. Qe1 {[%emt 0:03:33]} Re8 {[%emt 0:01:40]} 12. g4 {[%emt 0:03:15]} d4 {[%emt 0:07:12]} 13. Nb5 {[%emt 0:03:45]} Nb4 {[%emt 0:00:34]} 14. Nxd6 {[%emt 0:02:35]} Qxd6 {[%emt 0:00:07]} 15. Qh4 {[%emt 0:06:12]} Nec6 {[%emt 0:11:08]} 16. g5 {[%emt 0:04:58]} Bxf5 {[%emt 0:02:36]} 17. Bf4 {[%emt 0:10:12]} fxg5 {[%emt 0:12:41]} 18. Nxg5 {[%emt 0:03:29]} Qh6 {[%emt 0:00:24]} 19. Qg3 {[%emt 0:02:01]} Be6 {[%emt 0:03:14]} 20. h4 {[%emt 0:07:57]} Nc2 {[%emt 0:09:41]} 21. Rac1 {[%emt 0:20:41]} Ne3 {[%emt 0:00:21]} 22. Rf2 {[%emt 0:01:36]} Bxa2 {[%emt 0:01:35]} 23. h5 {[%emt 0:00:55]} Rf8 {[%emt 0:03:21]} 24. Ra1 {[%emt 0:04:34]} Nb4 {[%emt 0:01:59]} 25. Nh3 {[%emt 0:02:42]} Qc6 {[%emt 0:03:19]} 26. Be5 {[%emt 0:00:00]} Qd7 {[%emt 0:00:27]} 27. h6 {[%emt 0:00:20]} g6 {[%emt 0:01:54]} 28. Nf4 {[%emt 0:00:25]} Qe8 {[%emt 0:21:42]} 29. Nh5 {[%emt 0:00:41]} Rxf2 {[%emt 0:02:20]} 30. Kxf2 {[%emt 0:00:04]} Qe7 {[%emt 0:02:06]} 31. Nf6+ {[%emt 0:00:46]} Kf7 {[%emt 0:00:05]} 32. Nxh7 {[%emt 0:00:40]} Qxe5 {[%emt 0:02:50]} 33. Qxe5 {[%emt 0:00:24]} Nxd3+ {[%emt 0:00:21]} 34. Bxd3 {[%emt 0:00:35]} Ng4+ {[%emt 0:00:04]} 35. Ke2 {[%emt 0:00:07]} Nxe5 {[%emt 0:00:05]} 36. Rxa2 {[%emt 0:00:29]} c4 {[%emt 0:00:05]} 37. Bxc4+ {[%emt 0:00:52]} Nxc4 {[%emt 0:00:04]} 38. Kd3 {[%emt 0:00:08]} Ne5+ {[%emt 0:00:22]} 39. Kxd4 {[%emt 0:00:09]} Nc6+ {[%emt 0:00:03]} 40. Ke3 {[%emt 0:01:11]} Rh8 {[%emt 0:00:27]} 41. Ng5+ {[%emt 0:24:34]} Kf6 {[%emt 0:20:16]} 42. Nf3 {[%emt 0:02:28]} Rxh6 {[%emt 0:02:39]} 43. Ra1 {[%emt 0:00:38]} Rh5 {[%emt 0:08:44]} 44. Kf4 {[%emt 0:06:11]} Rc5 {[%emt 0:02:45]} 45. Rd1 {[%emt 0:03:46]} g5+ {[%emt 0:01:45]} 46. Nxg5 {[%emt 0:01:03]} Rc2 {[%emt 0:03:18]} 47. Nf3 {[%emt 0:01:34]} Ke6 {[%emt 0:01:34]} 48. b3 {[%emt 0:06:32]} Rc3 {[%emt 0:01:04]} 49. Rh1 {[%emt 0:05:23]} Rxb3 {[%emt 0:01:32]} 50. Rh6+ {[%emt 0:00:21]} Kd7 {[%emt 0:00:04]} 51. Rh7+ {[%emt 0:00:04]} Kd8 {[%emt 0:01:25]} 52. Ng5 {[%emt 0:01:03]} a5 {[%emt 0:04:34]} 53. Ne6+ {[%emt 0:00:47]} Ke8 {[%emt 0:00:05]} 54. Nc7+ {[%emt 0:00:56]} Kd8 {[%emt 0:00:45]} 55. Nd5 {[%emt 0:02:10]} a4 {[%emt 0:00:57]} 56. Kf5 {[%emt 0:00:03]} a3 {[%emt 0:02:17]} 57. Ke6 {[%emt 0:00:54]} Nd4+ {[%emt 0:00:05]} 58. Kd6 {[%emt 0:00:21]} Nb5+ {[%emt 0:00:06]} 59. Kc6 {[%emt 0:00:36]} Nd4+ {[%emt 0:00:33]} 60. Kb7 {[%emt 0:00:09]} Rf3 {[%emt 0:00:58]} 61. e5 {[%emt 0:00:58]} a2 {[%emt 0:00:21]} 62. Rh8+ {[%emt 0:00:33]} Kd7 {[%emt 0:00:06]} 63. Nxb6+ {[%emt 0:00:26]} Ke6 {[%emt 0:00:06]} 64. Re8+ {[%emt 0:00:24]} Kf5 {[%emt 0:00:17]} 65. Ra8 {[%emt 0:00:15]} Rf2 {[%emt 0:00:52]} 66. Nd5 {[%emt 0:00:55]} Nb3 {[%emt 0:00:23]} 67. e6 {[%emt 0:00:31]} Kxe6 {[%emt 0:00:55]} 0-1